Cogmind - Beta 17.1 @@@ ROGUE MODE // 2026.09.14 @ 23:06:52 Player: 7H-NLC Result: Destroyed by Striker with Compact Linear Accelerator Performance ------------- Evolutions (4) 2000 Regions Visited (10) 2000 Robots Destroyed (100) 500 Value Destroyed (3791) 3791 Prototype IDs (6) 120 Alien Tech Used (0) 0 Bonus (2131) 2131 TOTAL SCORE: 10542 Bonus ------- High Alert Combat Kills 107 Follower Combat Kills 632 Entered Garrisons 400 Used RIF Installer 1000 Friendly Fire -8 Cogmind --------- Core Integrity 0/850 Matter 215/300 Energy 55/100 System Corruption 5% Temperature Cool (0) Movement Core (50) Location -6/Garrison Parts ------- > --- POWER (1) -------- (None) > --- PROPULSION (4) --- (None) > --- UTILITY (8) ------ (None) > --- WEAPON (2) ------- (None) > --- INVENTORY (5) ---- Advanced Heat Sink Large Battery (200) Matter Compressor (88) Remote Datajack Mace Peak State ------------ > --- POWER ------------ Light Angular Momentum Engine > --- PROPULSION ------- Improved Medium Treads Improved Medium Treads Armored Huge Wheel > --- UTILITY ---------- Improved Heat Sink High-capacity Storage Unit Active Sensor Suite Advanced Targeting Computer Relay Coupler [NC] Relay Coupler [Specialist] > --- WEAPON ----------- Compact Ion Cannon Coil Gun > --- INVENTORY -------- Improved Deuterium Engine Light Angular Momentum Engine Armored Huge Wheel Large Battery Matter Compressor Advanced Sensor Array Transmission Jammer Remote Shield Relay Coupler [Duelist] Long-range Missile Launcher Remote Datajack Remote Datajack Mace [Rating: 79] Favorites ----------- Power Nuclear Core Engine Improved Ion Engine Power Core Nuclear Core Propulsion Light Treads Treads Light Treads Leg Aluminum Leg Wheel Armored Huge Wheel Hover Unit Gravmag System Utility High-capacity Storage Unit Device Improved Heat Sink Storage High-capacity Storage Unit Processor Advanced Targeting Computer Hackware Relay Coupler [Specialist] Protection Medium Armor Plating Weapon Light Assault Rifle Energy Gun Arc Projector Energy Cannon Heavy Plasma Cannon Ballistic Gun Light Assault Rifle Launcher Mini Grenade Launcher Special Weapon Remote Datajack Impact Weapon Heavy Mace Special Melee Weapon Datajack Build | -11 -10 -10 -10 -9 -8 -8 -8 -8 -6 -6 ------- Run | Yrd Mat Min Exi Min Mat Sto Gar Rec Fac Gar Slots Evolved 8 | . . . . . 4 . . . 4 . Power . | . . . . . . . . . . . Propulsion 2 | . . . . . 1 . . . 1 . Utility 6 | . . . . . 3 . . . 3 . Weapon . | . . . . . . . . . . . Parts Attached 110 | 7 1 6 . 14 15 8 16 5 27 11 Power 15 | 1 1 1 . 2 1 2 1 . 4 2 Engine 9 | 1 . . . 2 1 1 . . 2 2 Core 6 | . 1 1 . . . 1 1 . 2 . Reactor . | . . . . . . . . . . . Propulsion 34 | 2 . 3 . 6 5 2 4 3 5 4 Treads 13 | 2 . . . . . . 2 3 4 2 Leg 13 | . . 2 . 6 4 1 . . . . Wheel 6 | . . 1 . . . 1 1 . 1 2 Hover 2 | . . . . . 1 . 1 . . . Flight . | . . . . . . . . . . . Utility 41 | 2 . 1 . 4 5 3 8 2 13 3 Device 15 | 1 . . . 3 2 1 1 . 4 3 Storage 6 | 1 . 1 . 1 1 1 . . 1 . Processor 5 | . . . . . 1 1 1 1 1 . Hackware 8 | . . . . . . . 3 1 4 . Protection 7 | . . . . . 1 . 3 . 3 . Artifact . | . . . . . . . . . . . Weapon 20 | 2 . 1 . 2 4 1 3 . 5 2 Energy Gun 5 | . . . . . 1 . 1 . 1 2 Energy Cannon 2 | . . . . . . . 1 . 1 . Ballistic Gun 4 | 2 . . . . . 1 . . 1 . Ballistic Cannon . | . . . . . . . . . . . Launcher 3 | . . . . 1 1 . . . 1 . Special Weapon 3 | . . . . 1 1 . 1 . . . Impact Weapon 2 | . . . . . 1 . . . 1 . Slashing Weapon . | . . . . . . . . . . . Piercing Weapon . | . . . . . . . . . . . Special Melee Weapon 1 | . . 1 . . . . . . . . Unidentified Prototypes 4 | . . . . . 2 . . . 1 1 Parts Lost 34 | . 1 . . 2 3 8 3 1 2 14 Power 5 | . . . . 1 . 2 . . . 2 Propulsion 12 | . 1 . . . . 2 2 1 . 6 Utility 9 | . . . . . 2 1 1 . 1 4 Weapon 8 | . . . . 1 1 3 . . 1 2 Highest Loss Streak 6 | . 1 . . 2 1 4 1 1 1 6 To Critical Strikes . | . . . . . . . . . . . Average Backups 15 | 1 4 9 12 15 18 17 17 18 16 15 Power . | . . . 1 . 1 . . 1 . 1 Propulsion 1 | . . . 1 1 4 2 . . 1 2 Utility 9 | 1 3 4 5 8 8 10 13 14 9 7 Weapon 2 | . 1 3 4 4 3 3 2 2 2 2 Tool/Special . | . . . . . . . . . . . Unused Backups 34 | . . . . 8 1 4 7 . 7 7 Power 3 | . . . . . . . . . 2 1 Propulsion 2 | . . . . 1 . 1 . . . . Utility 22 | . . . . 6 . 2 6 . 4 4 Weapon 5 | . . . . 1 1 1 1 . 1 . Tool/Special 2 | . . . . . . . . . . 2 Average Slot Usage (%) 92 | . 100 94 100 95 83 93 98 92 85 81 Engine 2 | . 6 . . 6 9 6 . . 4 2 Core 6 | . 7 14 14 7 . 1 9 9 1 3 Treads 8 | . 28 10 . . . . 13 11 13 12 Leg 10 | . . 7 28 28 26 25 . . . . Wheel 3 | . . 5 . . . 1 12 . 5 5 Hover 1 | . . . . . . . . 8 . . Device 9 | . 14 14 14 11 9 20 1 9 7 8 Storage 9 | . 14 14 14 14 9 9 9 9 6 6 Processor 10 | . . . . . 7 12 13 22 14 10 Hackware 3 | . . . . . . . 4 3 9 12 Protection 3 | . . . . . 3 . 15 . 5 3 Energy Gun 1 | . . . . . 6 4 1 . . 2 Energy Cannon 1 | . . . . . . . 1 4 1 3 Ballistic Gun 7 | . 28 23 28 18 . 2 . . . 2 Special Weapon 2 | . . . . 5 1 2 . 5 4 . Impact Weapon 3 | . . . . . 7 3 6 3 3 2 Special Melee Weapon 2 | . . 4 . . . 1 6 4 . . Peak Build Rating 79 | 7 10 10 11 19 32 33 37 39 67 79 Average Rating 31 | 6 8 9 10 15 27 29 27 35 59 68 On Entrance 21 | . 7 9 10 11 14 31 24 37 32 66 Avg Prop Armor Cover (%) 8 | . . 5 . 8 . 15 8 5 9 8 Naked Turns 7 | . . . . . . . . . . 7 Heaviest Build 98 | 13 13 28 28 50 98 57 72 68 80 80 Greatest Support 60 | 40 40 20 20 31 48 49 40 60 60 60 Greatest Overweight (x) 7 | . . 2 1 2 2 4 7 3 2 2 Average Overweight (x) 1 | . . . 1 . 1 1 3 1 1 1 Largest Inventory Capacity 20 | 8 8 15 15 20 20 20 20 20 20 20 Average Capacity 18 | 7 8 12 15 17 20 20 20 20 20 19 Most Carried 20 | 4 6 12 14 20 20 20 20 20 20 20 Average Carried 17 | 1 4 9 12 16 19 18 18 19 19 17 Final Capacity 20 | 8 8 15 15 20 20 20 20 20 20 5 Final Carried 20 | 4 6 12 14 20 20 17 20 20 20 5 Class Distribution -------------------- 43% | Mutant 23% | Bothacker-Mutant 16% | Scavenger-Mutant 14% | Commander-Mutant Dominant Class ---------------- Mutant | -10/Materials Mutant | -10/Mines Scavenger-Mutant | -10/Exiles Mutant | -9/Mines Mutant | -8/Materials Mutant | -8/Storage Bothacker-Mutant | -8/Garrison Commander-Mutant | -8/Recycling Scavenger-Mutant | -6/Factory Mutant | -6/Garrison Resources | -11 -10 -10 -10 -9 -8 -8 -8 -8 -6 -6 ----------- Run | Yrd Mat Min Exi Min Mat Sto Gar Rec Fac Gar Matter Collected 3295 | 365 95 79 . 379 291 264 505 254 513 550 Remotely . | . . . . . . . . . . . Salvage Created 3197 | 198 159 34 . 130 460 533 417 152 532 582 Parts 187 | 17 9 6 . 7 39 30 31 4 28 16 Haulers Intercepted 2 | . . . . . . 2 . . . . Recyclers Shooed 4 | . . . . . 1 . . . 3 . Parts Field Recycled . | . . . . . . . . . . . Retrieved Matter . | . . . . . . . . . . . Parts Self-Destructed . | . . . . . . . . . . . Prevented . | . . . . . . . . . . . Parts Restored . | . . . . . . . . . . . Kills | -11 -10 -10 -10 -9 -8 -8 -8 -8 -6 -6 ------- Run | Yrd Mat Min Exi Min Mat Sto Gar Rec Fac Gar Combat Hostiles Destroyed 79 | . 2 1 . 11 10 12 18 1 12 12 Melee 4 | . . . . . . . 2 . 2 . Guns 16 | . 2 1 . 2 4 3 1 . 2 1 Cannons 14 | . . . . . . 1 2 1 5 5 AOE 40 | . . . . 9 6 6 12 . 3 4 Classes Destroyed 16 | 3 1 1 . 1 5 3 2 . . . Worker 5 | 1 . . . 1 2 1 . . . . Builder 6 | . . . . . 1 2 . . 3 . Tunneler 7 | 5 . 1 . . . . . . 1 . Hauler 2 | . . . . . . 2 . . . . Recycler 5 | 1 1 . . 1 1 . . 1 . . Mechanic 1 | . . . . . . 1 . . . . Operator 1 | . . . . . 1 . . . . . Watcher 1 | . . . . . 1 . . . . . Swarmer 19 | . . 1 . 3 3 . 7 . 3 2 Grunt 27 | . 2 . . . 4 6 5 . 5 5 Brawler 4 | . . . . . 1 1 . 1 1 . Duelist 1 | . . . . . . . 1 . . . Sentry 11 | . . . . . 2 3 1 . 1 4 Hunter 3 | . . . . . . 2 1 . . . Programmer 7 | . . . . . . . 3 . 3 1 Assembled 8 | . . . . 8 . . . . . . Best Kill Streak 8 | 3 2 1 . 5 8 6 4 1 6 3 Combat Bots Only 4 | . 2 1 . 4 3 3 4 1 3 3 Max Kills in Single Turn 3 | 1 1 1 . 2 2 2 3 1 2 2 Gunslinging . | . . . . . . . . . . . Exploded 3 | . . . . 1 1 1 3 . 1 2 Melee 1 | . . . . . . . 1 . 1 . Uniques/NPCs Destroyed . | . . . . . . . . . . . Combat | -11 -10 -10 -10 -9 -8 -8 -8 -8 -6 -6 -------- Run | Yrd Mat Min Exi Min Mat Sto Gar Rec Fac Gar Hostile Shots Fired 897 | . 42 3 . 29 59 107 71 7 165 414 Missed 262 | . 11 . . 10 23 27 20 . 48 123 Hits 635 | . 31 3 . 19 36 80 51 7 117 291 Melee 6 | . . . . 1 2 . . 3 . . Projectile 629 | . 31 3 . 18 34 80 51 4 117 291 Critical Strikes 19 | . 1 . . 1 3 5 1 2 1 5 Part Disruptions 4 | . . . . 2 . . 2 . . . Damage Taken 8309 | . 430 23 . 324 621 1300 845 143 1507 3116 Core 1570 | . 126 8 . 32 82 285 100 44 168 725 Absorbed by Shields 4 | . . . . . . . . . 4 . Regen/Repaired (Parts) 61 | . . . . . . . . . 61 . Core Remaining (%) 46 | 100 . . . 33 . . . 7 . . Volleys Fired 334 | 21 24 7 . 36 52 37 43 10 59 45 Largest 2 | 2 2 2 . 2 2 2 1 1 1 2 Hottest 170 | 40 40 40 . 100 155 155 90 90 90 170 Shots Fired 419 | 42 48 9 . 50 55 41 45 12 60 57 Gun 220 | 42 48 9 . 26 40 28 3 . 11 13 Cannon 101 | . . . . . . . 29 8 26 38 Launcher 66 | . . . . 17 13 10 13 . 7 6 Special 32 | . . . . 7 2 3 . 4 16 . Kinetic 136 | 42 48 9 . 26 . 3 . . 2 6 Thermal 132 | . . . . 7 2 3 32 8 35 45 Explosive 66 | . . . . 17 13 10 13 . 7 6 Electromagnetic 65 | . . . . . 40 25 . . . . Robot Hit Streak 33 | 8 5 3 . 6 9 11 9 19 33 29 Robot Miss Streak 4 | 2 4 2 . 3 2 2 2 . 2 1 Penetration Max . | . . . . . . . . . . . Secondary Targets . | . . . . . . . . . . . Shots Hit Robots 344 | 28 27 10 . 19 39 39 39 44 48 51 Core Hits 193 | 14 11 5 . 24 29 35 23 1 29 22 Critical Kills . | . . . . . . . . . . . Critical Parts Destroyed 5 | 1 . . . . . 3 . . 1 . Critical Strikes 6 | 1 . . . . . 3 . . 1 1 Burn 1 | . . . . . . . . . . 1 Destroy 1 | 1 . . . . . . . . . . Smash 4 | . . . . . . 3 . . 1 . Melee Attacks 162 | . . 5 . . . 16 53 33 29 26 Impact 117 | . . . . . . 15 45 2 29 26 Slashing . | . . . . . . . . . . . Piercing . | . . . . . . . . . . . Sneak Attacks 42 | . . 5 . . . 4 . 32 1 . Combat Hostiles . | . . . . . . . . . . . Follow-up Attacks . | . . . . . . . . . . . Damage Inflicted 10271 | 242 234 46 . 846 1441 1815 1751 313 1770 1813 Guns 1634 | 236 234 37 . 93 307 229 30 . 212 256 Cannons 2275 | . . . . . . . 634 248 453 940 Explosions 5237 | . . . . 753 1106 1037 992 . 732 617 Melee 1033 | . . . . . . 523 95 64 351 . Ramming 52 | 6 . 9 . . 14 . . 1 22 . Kinetic 718 | 236 234 37 . 93 . 14 . . . 104 Thermal 2907 | . . . . . 101 137 664 248 665 1092 Explosive 5039 | . . . . 753 1019 926 992 . 732 617 Electromagnetic 522 | . . . . . 307 215 . . . . Impact 1033 | . . . . . . 523 95 64 351 . Slashing . | . . . . . . . . . . . Piercing . | . . . . . . . . . . . Highest Corruption 7 | . . . . 6 4 4 7 7 4 5 Average Corruption 4 | . . . . 3 4 4 4 7 2 4 Corruption Purged 5 | . . . . 5 . . . . . . Corruption Blocked . | . . . . . . . . . . . Effects 209 | . . . . 15 19 13 41 73 32 16 Message Errors 49 | . . . . . 2 4 13 17 7 6 Matter Fused 50 | . . . . 5 4 1 7 23 8 2 Heat Flow Errors 28 | . . . . 4 3 1 4 11 3 2 Energy Discharges 25 | . . . . 1 1 4 6 8 5 . Parts Rejected 4 | . . . . . . . 1 1 . 2 Parts Fused 2 | . . . . . 1 . . 1 . . Data Loss (minor) 25 | . . . . 1 3 1 5 8 6 1 Data Loss (major) 11 | . . . . 2 . 1 3 1 1 3 Misfires 10 | . . . . 1 3 1 2 2 1 . Alerts 3 | . . . . 1 . . . 1 1 . Weapon Failures 2 | . . . . . 2 . . . . . Overload Shots . | . . . . . . . . . . . Overflow Damage 698 | . . . . 25 138 231 140 38 126 . Projectiles 89 | . . . . . . . 85 4 . . Explosions 258 | . . . . 25 138 . 55 . 40 . Melee 351 | . . . . . . 231 . 34 86 . Knockbacks . | . . . . . . . . . . . Impact . | . . . . . . . . . . . Kinetic . | . . . . . . . . . . . Secondary . | . . . . . . . . . . . Self-Inflicted Damage 319 | . . . . 71 48 88 101 . 11 . Shots 15 | . . . . 6 1 5 3 . . . Rammed 4 | 1 . 1 . . . . . 1 1 . Targets Rammed 7 | 1 . 3 . . 1 . . 1 1 . Kicked 3 | . . 2 . . 1 . . . . . Crushed . | . . . . . . . . . . . Highest Temperature 357 | . 49 4 . 240 262 248 171 261 236 357 Average Temperature 73 | . 18 2 . 55 69 109 61 84 67 139 Received Heat Transfer 2793 | . 261 . . 160 279 432 135 18 291 1217 Effects 2 | . . . . . . . . . . 2 Shutdowns 1 | . . . . . . . . . . 1 Short Circuit 1 | . . . . . . . . . . 1 Siege Activations . | . . . . . . . . . . . Martial Activations . | . . . . . . . . . . . Shielding Activations . | . . . . . . . . . . . Robots Disrupted 1 | . . . . . . 1 . . . . Combat Hostiles 1 | . . . . . . 1 . . . . Robots Corrupted 4 | . . . . . . 4 . . . . Combat Hostiles 2 | . . . . . . 2 . . . . Parts Fried 7 | . . . . . 1 4 . 1 1 . Impact Corruptions 13 | . . . . . . 8 . 1 4 . Robots Melted 3 | . . . . . . . 1 . . 2 Combat Hostiles 3 | . . . . . . . 1 . . 2 Parts Melted 14 | . . . . 1 . . 2 . 3 8 Heat Transferred 4522 | . . . . . 130 260 874 400 1175 1683 Parts Sabotaged . | . . . . . . . . . . . Parts Stolen . | . . . . . . . . . . . Parts Stripped . | . . . . . . . . . . . Power Chain Reactions 1 | . . . . . . 1 . . . . Alert | -11 -10 -10 -10 -9 -8 -8 -8 -8 -6 -6 ------- Run | Yrd Mat Min Exi Min Mat Sto Gar Rec Fac Gar Maximum Alert Level 3 | . . . . . 1 . 3 2 . 1 Low Security (%) 76 | 100 100 100 . 100 54 100 9 81 100 56 Level 1 10 | . . . . . 45 . 9 17 . 43 Level 2 7 | . . . . . . . 44 . . . Level 3 5 | . . . . . . . 36 . . . Level 4 . | . . . . . . . . . . . Level 5 . | . . . . . . . . . . . High Security . | . . . . . . . . . . . Max Security . | . . . . . . . . . . . Peak Influence 905 | 10 50 78 . 94 306 158 905 406 177 381 Initial 406 | . . . . . . 112 30 406 156 107 Average 151 | 1 10 9 . 7 191 86 569 81 66 192 Influence Increases 3823 | 35 59 140 . 143 653 409 985 154 891 354 Destroy 0b10 Robot/C 1840 | . 40 100 . 60 300 240 440 60 360 240 Destroy 0b10 Robot/NC 140 | 35 5 5 . 10 30 30 . 5 20 . Destroy Leader 346 | . 10 20 . 10 92 74 30 . 90 20 Allied During Kill 75 | . . 15 . . 13 . 17 7 23 . Successful Hack 84 | . 4 . . . 10 7 . 22 41 . Select Force Hacks 60 | . . . . . . . . 60 . . Disable Machine 180 | . . . . . 75 . 15 . 90 . Anti-Garrison Action 350 | . . . . . . . 350 . . . Destroy Structure 418 | . . . . 63 73 43 133 . 42 64 Advance Influence 150 | . . . . . . . . . 150 . Lose Combat Pursuer 180 | . . . . . 60 15 . . 75 30 Influence Decreases 3502 | 35 59 116 24 143 386 629 127 1044 752 187 Entered New Map 751 | . . . 24 . . 155 17 499 9 47 Time Decay 2011 | 35 59 96 . 123 336 374 . 506 482 . Lost Part 330 | . . . . 20 30 80 30 10 20 140 Lost Ally 290 | . . 20 . . 20 20 80 . 150 . Purge Threat 120 | . . . . . . . . 29 91 . Squads Dispatched 14 | . . . . 1 1 4 . . 8 . Investigation 2 | . . . . 1 1 . . . . . Extermination 4 | . . . . . . . . . 4 . Reinforcement 8 | . . . . . . 4 . . 4 . Assault . | . . . . . . . . . . . Garrison . | . . . . . . . . . . . Intercept . | . . . . . . . . . . . Searches Triggered . | . . . . . . . . . . . Construction Impeded 2 | . . . . . . 1 . . 1 . Haulers Reinforced . | . . . . . . . . . . . Active Scanning Responses 1 | . . . . . . . . . . 1 Cargo Convoy Interrupts 1 | . . . . . . . . . 1 . Stealth | -11 -10 -10 -10 -9 -8 -8 -8 -8 -6 -6 --------- Run | Yrd Mat Min Exi Min Mat Sto Gar Rec Fac Gar Distress Signals 15 | . 3 . . 1 3 2 1 . 5 . Communications Jammed . | . . . . . . . . . . . Distress Signals . | . . . . . . . . . . . Times Spotted 165 | . 8 4 . 13 24 19 34 5 35 23 Peak Tracking Total 11 | . 3 3 . 4 4 5 4 1 11 10 Tactical Retreats 10 | . . . . . 3 1 . . 4 2 Traps | -11 -10 -10 -10 -9 -8 -8 -8 -8 -6 -6 ------- Run | Yrd Mat Min Exi Min Mat Sto Gar Rec Fac Gar Traps Triggered 11 | . . . . . 1 . 6 . 2 2 Indirectly . | . . . . . . . . . . . Trap Hack Attempts . | . . . . . . . . . . . Triggered . | . . . . . . . . . . . Disarmed . | . . . . . . . . . . . Reprogrammed . | . . . . . . . . . . . Reused . | . . . . . . . . . . . Traps Extracted . | . . . . . . . . . . . Installed . | . . . . . . . . . . . Triggered . | . . . . . . . . . . . Machines | -11 -10 -10 -10 -9 -8 -8 -8 -8 -6 -6 ---------- Run | Yrd Mat Min Exi Min Mat Sto Gar Rec Fac Gar Machines Disabled 16 | . . . . . 5 . 5 . 6 . Max in Single Turn 3 | . . . . . 3 . 1 . 3 . Garrison Relay 3 | . . . . . . . 3 . . . Machines Repaired . | . . . . . . . . . . . Machines Dismantled . | . . . . . . . . . . . Machines Sabotaged . | . . . . . . . . . . . Overloaded Fab Kills . | . . . . . . . . . . . Hacking | -11 -10 -10 -10 -9 -8 -8 -8 -8 -6 -6 --------- Run | Yrd Mat Min Exi Min Mat Sto Gar Rec Fac Gar Machines Accessed 27 | . 1 . 1 1 4 5 1 8 6 . Terminals 13 | . 1 . . . 3 3 1 4 1 . Fabricators 1 | . . . . . . . . . 1 . Repair Stations 2 | . . . . . . . . . 2 . Recycling Units 5 | . . . . . . 1 . 4 . . Scanalyzers 2 | . . . . . 1 . . . 1 . Garrison Access 2 | . . . . . . 1 . . 1 . Total Hacks 65 | . 3 . 1 1 6 15 2 25 12 . Successful 35 | . 1 . 1 1 3 7 1 16 5 . Failed 29 | . 2 . . . 3 8 1 9 6 . Catastrophic 7 | . . . . . 1 2 1 1 2 . Database Lockouts 1 | . . . . . . . . . 1 . Manual 26 | . . . . . 2 8 1 11 4 . Terminals 37 | . 3 . . . 4 13 2 12 3 . Fabricators 1 | . . . . . . . . . 1 . Repair Stations 4 | . . . . . . . . . 4 . Recycling Units 14 | . . . . . . 1 . 13 . . Scanalyzers 5 | . . . . . 2 . . . 3 . Garrison Access 2 | . . . . . . 1 . . 1 . Terminal Hacks 11 | . 1 . 1 1 1 2 1 4 . . Record 1 | . . . 1 . . . . . . . Part Schematic 1 | . . . . . . . . 1 . . Robot Analysis 1 | . . . . . . . . 1 . . Open Door 1 | . . . . 1 . . . . . . Branch Access Points 1 | . . . . . 1 . . . . . Emergency Access Points 1 | . . . . . . . 1 . . . Unreport Threat 2 | . . . . . . . . 2 . . Locate Traps 2 | . 1 . . . . 1 . . . . Hauler Manifests 1 | . . . . . . 1 . . . . Fabricator Hacks . | . . . . . . . . . . . Repair Station Hacks 2 | . . . . . . . . . 2 . Scan Component 1 | . . . . . . . . . 1 . Repair 1 | . . . . . . . . . 1 . Recycling Unit Hacks 6 | . . . . . . . . 6 . . Report Inventory 3 | . . . . . . . . 3 . . Retrieve Components 3 | . . . . . . . . 3 . . Scanalyzer 3 | . . . . . 2 . . . 1 . Insert Component 1 | . . . . . 1 . . . . . Retrieve Study 2 | . . . . . 1 . . . 1 . Garrison Access Hacks 2 | . . . . . . 1 . . 1 . Unlock Access 2 | . . . . . . 1 . . 1 . Unauthorized Hacks 10 | . . . . . . 4 . 5 1 . Terminals 5 | . . . . . . 3 . 1 1 . Botnet 3 | . . . . . . 1 . 1 1 . Skim 2 | . . . . . . 2 . . . . Fabricators . | . . . . . . . . . . . Repair Stations . | . . . . . . . . . . . Recycling Units 5 | . . . . . . 1 . 4 . . Reject 1 | . . . . . . 1 . . . . Mask 2 | . . . . . . . . 2 . . Tunnel 2 | . . . . . . . . 2 . . Scanalyzers . | . . . . . . . . . . . Garrison Access . | . . . . . . . . . . . Data Cores Recovered 1 | . . . . . 1 . . . . . Used . | . . . . . . . . . . . Hacking Detections 19 | . 1 . . . 4 3 1 6 4 . Full Trace Events 2 | . 1 . . . . . . 1 . . Feedback Events . | . . . . . . . . . . . Feedback Blocked . | . . . . . . . . . . . Robot Schematics Acquired . | . . . . . . . . . . . Robots Built . | . . . . . . . . . . . Authchips . | . . . . . . . . . . . Time . | . . . . . . . . . . . Total Robot Build Rating . | . . . . . . . . . . . Part Schematics Acquired 1 | . . . . . . . . 1 . . Parts Built . | . . . . . . . . . . . Authchips . | . . . . . . . . . . . Time . | . . . . . . . . . . . Total Part Build Rating . | . . . . . . . . . . . Part Studies Acquired 2 | . . . . . 1 . . . 1 . Parts Repaired 1 | . . . . . . . . . 1 . Time 22 | . . . . . . . . . 22 . Parts Recycled . | . . . . . . . . . . . Recycled Matter . | . . . . . . . . . . . Retrieved Matter . | . . . . . . . . . . . Retrieved Components 6 | . . . . . . . . 6 . . Parts Scanalyzed . | . . . . . . . . . . . Part Schematics Acquired . | . . . . . . . . . . . Parts Damaged . | . . . . . . . . . . . Bothacking | -11 -10 -10 -10 -9 -8 -8 -8 -8 -6 -6 ------------ Run | Yrd Mat Min Exi Min Mat Sto Gar Rec Fac Gar Used RIF Installer 2 | . . . . . . . 2 . . . Command Fork 1 | . . . . . . . 1 . . . Robots Hacked 25 | . . 4 . . . . 6 3 12 . Non-combat 6 | . . 1 . . . . . 1 4 . Combat 19 | . . 3 . . . . 6 2 8 . Robot Hacks Applied 28 | . . 5 . . . . 6 4 13 . parse_system 5 | . . 5 . . . . . . . . ignore_repairs 2 | . . . . . . . . . 2 . ignore_parts 1 | . . . . . . . . 1 . . purge_threat 1 | . . . . . . . . . 1 . block_reporting 1 | . . . . . . . . . 1 . spike_heat 1 | . . . . . . . . . 1 . amplify_resonance 1 | . . . . . . . . . 1 . reboot_system 1 | . . . . . . . . 1 . . go_dormant 1 | . . . . . . . . 1 . . overwrite_iff 5 | . . . . . . . . . 5 . streamctrl_high 3 | . . . . . . . 2 1 . . formatsys_low 1 | . . . . . . . . . 1 . formatsys_high 5 | . . . . . . . 4 . 1 . Relay Couplers Released 14 | . . . . . . . 14 . . . Machine Destruction 14 | . . . . . . . 14 . . . Attached 8 | . . . . . . . 3 1 4 . Fabnet Peak Effective % . | . . . . . . . . . . . Robots Rewired 14 | . . . . . . 1 . 13 . . Allies Hacked . | . . . . . . . . . . . Hacks Repelled . | . . . . . . . . . . . Allies | -11 -10 -10 -10 -9 -8 -8 -8 -8 -6 -6 -------- Run | Yrd Mat Min Exi Min Mat Sto Gar Rec Fac Gar Total Allies 33 | . . 3 . 1 . 1 6 14 8 . Largest Group 13 | . . 3 2 2 1 1 5 13 12 . Highest-Rated Group 238 | . . 40 32 32 31 15 78 238 235 . Highest-Rated Ally 43 | . . 16 16 31 31 15 16 27 43 . Total Orders 12 | . . . . . . . 2 . 10 . STAY 7 | . . . . . . . 1 . 6 . FOLLOW 5 | . . . . . . . 1 . 4 . Ally Attacks 152 | . . 14 . 26 26 . 45 10 31 . Total Damage 1959 | . . 184 . 171 393 . 480 157 574 . Kills 25 | . . 4 . 4 5 . 4 2 6 . Allies Corrupted 1 | . . . . . 1 . . . . . Allies Melted . | . . . . . . . . . . . Intel | -11 -10 -10 -10 -9 -8 -8 -8 -8 -6 -6 ------- Run | Yrd Mat Min Exi Min Mat Sto Gar Rec Fac Gar Active Infowar (turns) 5554 | 168 274 1121 915 509 211 . . . 2061 295 Sensors 1982 | . . . . . . . . . 1872 110 A.S.S. 185 | . . . . . . . . . . 185 Seismic 3198 | 168 274 1121 915 509 211 . . . . . Jamming 189 | . . . . . . . . . 189 . Robot Analysis Total 1 | . . . . . . . . 1 . . Derelict Logs Recovered 3 | . . 1 . 2 . . . . . . Drone Launches . | . . . . . . . . . . . Drone Recoveries . | . . . . . . . . . . . Exploration | -11 -10 -10 -10 -9 -8 -8 -8 -8 -6 -6 ------------- Run | Yrd Mat Min Exi Min Mat Sto Gar Rec Fac Gar Turns Passed 13548 | 252 274 1121 915 1920 918 873 2049 2444 2094 688 Spaces Moved 6296 | 117 130 545 482 868 391 399 1143 726 1251 244 Core 20 | 6 . . . . . . . . . 14 Treads 1636 | 111 130 403 . . . . 62 726 60 144 Legs 2169 | . . 139 482 868 391 289 . . . . Wheels 2471 | . . 3 . . . 110 1081 . 1191 86 Hover . | . . . . . . . . . . . Flight . | . . . . . . . . . . . Fastest Speed 50 | 50 160 110 190 120 190 125 110 160 130 50 Average Speed 181 | 154 160 193 190 181 193 177 142 311 131 188 Slowest Speed 400 | 160 160 240 190 260 263 195 240 400 240 240 Overloaded Moves . | . . . . . . . . . . . Propulsion Burnouts . | . . . . . . . . . . . Robots Hopped . | . . . . . . . . . . . Potential Cave-ins . | . . . . . . . . . . . Cave-ins Triggered . | . . . . . . . . . . . Exploration Rate (%) 57 | 6 33 94 88 97 34 43 80 97 36 28 Regions Visited 10 Branch Regions 5 Pre-discovered Areas 2 | . . . . . . . . 2 . . Known Exits Taken 3 | . . . . . 1 1 . . 1 . Unknown Exits Taken 6 | 1 1 1 1 1 . . . 1 . . Scrap Searched 4 | . . 2 . 2 . . . . . . Spaces Dug 47 | . . . . . . . 17 . 18 12 Terrain Destroyed 452 | . . . . 91 81 45 105 . 50 80 Melee 42 | . . . . . . . 17 . 13 12 Projectile 11 | . . . . . . . 1 . 10 . AOE 399 | . . . . 91 81 45 87 . 27 68 Terrain Rammed . | . . . . . . . . . . . Walls Destroyed . | . . . . . . . . . . . Machines Disabled . | . . . . . . . . . . . Actions | -11 -10 -10 -10 -9 -8 -8 -8 -8 -6 -6 --------- Run | Yrd Mat Min Exi Min Mat Sto Gar Rec Fac Gar Total 7810 | 151 157 594 482 1161 495 496 1441 873 1598 362 Wait 629 | 2 1 24 . 209 10 14 86 88 177 18 Move 6286 | 116 129 544 481 867 390 398 1141 725 1251 244 Hop . | . . . . . . . . . . . Pick Up 94 | 4 2 4 1 16 8 8 25 3 20 3 Fast Attach 29 | 7 . 1 . 2 5 2 3 2 3 4 Attach 25 | . . . . . 3 6 7 . 4 5 Detach 5 | . . . . . 1 1 1 . 1 1 Swap 109 | . 1 6 . 14 15 7 18 8 30 10 Drop 78 | . . . . 17 10 7 16 3 23 2 Fire 334 | 21 24 7 . 36 52 37 43 10 59 45 Melee 162 | . . 5 . . . 16 53 33 29 26 Ram 1 | . . . . . . . . . 1 . Kick 3 | . . 2 . . 1 . . . . . Crush 3 | 1 . 1 . . . . . 1 . . Escape Stasis 52 | . . . . . . . 48 . . 4 Rewire . | . . . . . . . . . . . Trap . | . . . . . . . . . . . Miscellaneous . | . . . . . . . . . . . Route ------- -11/Scrapyard -10/Materials -10/Mines (discovered 4 exits: [*Mat x2] / *Exi / [*Sub]) -10/Exiles (discovered 2 exits: *Min x2) -9/Mines (discovered 2 exits: *Mat x2) -8/Materials (discovered 4 exits: *Fac x2 / *Sto x2) -8/Storage -8/Garrison (discovered 3 exits: *Rec x3) -8/Recycling (discovered 2 exits: *Fac / [*Scr]) -6/Factory (discovered 3 exits: *Low x2 / Gar) -6/Garrison History --------- Turn | Location | Event 22 | -11/Scrapyard | Discovered new exit (range 15) 253 | -11/Scrapyard | Entered Materials 311 | -10/Materials | Build established: Mutant 507 | -10/Materials | Discovered new exit (range 7) 526 | -10/Materials | Core integrity fell below 50% 527 | -10/Materials | Entered Mines 617 | -10/Mines | Met a Derelict bent on vengeance 627 | -10/Mines | Assisted by bots powering up and referring to "LRC-V3" 652 | -10/Mines | Discovered new exit (range 14) 830 | -10/Mines | Learned 2 Materials zone layouts 943 | -10/Mines | YI-UF0 nonchalantly dropped a Grenade Launcher on the ground 1378 | -10/Mines | Discovered new exit (range 11) 1467 | -10/Mines | Discovered new exit (range 12) 1620 | -10/Mines | Deemed a non-threat by the Exiles lab entrance 1620 | -10/Mines | Discovered new exit (range 5) 1639 | -10/Mines | Build established: Scavenger-Mutant 1648 | -10/Mines | Entered Exiles 1648 | -10/Exiles | Found Exiles lab abandoned 1648 | -10/Exiles | Accompanied by 2 allies 1681 | -10/Exiles | Discovered new exit (range 15) 2542 | -10/Exiles | Discovered new exit (range 10) 2563 | -10/Exiles | Entered Mines 2563 | -9/Mines | Accompanied by 2 allies 2615 | -9/Mines | Learned 4 Materials zone layouts 2755 | -9/Mines | Met a Derelict shopkeep closing up shop 2760 | -9/Mines | Assembled infested the area 2765 | -9/Mines | Assisted by a Guerilla fighting off Assembled 2847 | -9/Mines | Found a Scrap Suit stashed away for nefarious purposes 3065 | -9/Mines | Build established: Mutant 3265 | -9/Mines | A weapon hastily lodged in a ceiling crevice suddenly fell to the ground 3287 | -9/Mines | Discovered new exit (range 7) 3362 | -9/Mines | Discovered new exit (range 12) 3406 | -9/Mines | Escorted by a lone wolf Derelict 4483 | -9/Mines | Entered Materials 4483 | -8/Materials | Accompanied by 1 ally 4483 | -8/Materials | Evolved 4 slots: Propulsion x1, Utility x3 4484 | -8/Materials | Identified exit to Factory 4746 | -8/Materials | Identified exit to Storage 5085 | -8/Materials | Discovered exit to Factory (range 12) 5401 | -8/Materials | Entered Storage 6065 | -8/Storage | Lost 4 parts (1p1n1u1w) 6100 | -8/Storage | Core integrity fell below 50% 6216 | -8/Storage | Identified exit to Garrison 6274 | -8/Storage | Entered Garrison 6276 | -8/Garrison | Triggered checkpoint 6534 | -8/Garrison | Triggered checkpoint 6651 | -8/Garrison | Installed Relay Interface Framework 6659 | -8/Garrison | Garrison Relay disabled 6680 | -8/Garrison | Triggered checkpoint 6707 | -8/Garrison | Discovered new exit (range 12) 6852 | -8/Garrison | Triggered checkpoint 6895 | -8/Garrison | Discovered new exit (range 11) 6952 | -8/Garrison | Build established: Bothacker-Mutant 6958 | -8/Garrison | Garrison Relay disabled 6974 | -8/Garrison | Triggered checkpoint 7056 | -8/Garrison | Triggered checkpoint 7076 | -8/Garrison | Triggered checkpoint 7127 | -8/Garrison | Discovered new exit (range 10) 7901 | -8/Garrison | Garrison Relay disabled 8134 | -8/Garrison | Core integrity fell below 20% 8228 | -8/Garrison | Expanded RIF knowledge: Command Fork 8323 | -8/Garrison | Entered Recycling 8926 | -8/Recycling | Discovered new exit (range 5) 9797 | -8/Recycling | Build established: Commander-Mutant 10195 | -8/Recycling | Scanned before Scraplab entrance 10243 | -8/Recycling | Entered Scraplab 10269 | -8/Recycling | Discovered new exit (range 3) 10767 | -8/Recycling | Entered Factory 10767 | -6/Factory | Accompanied by 12 allies 10767 | -6/Factory | Evolved 4 slots: Propulsion x1, Utility x3 10923 | -6/Factory | Repaired Remote Datajack 11379 | -6/Factory | Lost 3 allies 11470 | -6/Factory | Discovered new exit (range 9) 11482 | -6/Factory | Identified exit to Lower Caves 11747 | -6/Factory | Lost 11 allies 11779 | -6/Factory | Cargo convoy interrupted 11833 | -6/Factory | Found Prototype Device 11997 | -6/Factory | Central database locked down 12096 | -6/Factory | Build established: Scavenger-Mutant 12099 | -6/Factory | Discovered exit to Lower Caves (range 14) 12861 | -6/Factory | Identified exit to Garrison 12861 | -6/Factory | Entered Garrison 12960 | -6/Garrison | Build established: Mutant 13193 | -6/Garrison | Triggered checkpoint 13263 | -6/Garrison | Identified Active Sensor Suite 13306 | -6/Garrison | Lost 6 parts (1p2n2u1w) 13315 | -6/Garrison | Core integrity fell below 50% 13525 | -6/Garrison | Spotted B-86 Titan 13536 | -6/Garrison | Spotted Striker 13542 | -6/Garrison | Released all parts (5) 13544 | -6/Garrison | Core integrity fell below 20% 13549 | -6/Garrison | Destroyed by Striker with Compact Linear Accelerator Last Messages --------------- 13500_ The unstable cave ceiling collapses. 13525_ S-27 Virus destroyed. 13526_ The unstable cave ceiling collapses. 13526_ Critical hit (Burn: +37). 13528_ Critical hit (Meltdown: +350). 13528_ Slug penetrates Wall. 13529_ Power failure, Lgt. Angular Momentum Engine shutdown. 13530_ Lgt. Angular Momentum Engine destroyed. 13531_ The unstable cave ceiling collapses. 13532_ Lrn. Missile Launcher destroyed. 13532_ Arm. Huge Wheel destroyed. 13535_ Adv. Targeting Computer destroyed. 13535_ Lgt. Treads destroyed. 13535_ Imp. Medium Treads destroyed. 13540_ System corrupted: Adv. Heat Sink rejected. 13542_ Released Active Sensor Suite. 13542_ Released Hcp. Storage Unit. 13542_ Released Relay Coupler [NC]. 13542_ Released Com. Ion Cannon. 13542_ Released Arm. Huge Wheel. Map ----- +----------------------------------------------------+ | ???# ??##?????????????# #??# #?# #??????# ##? | | ???# ?## ##???????????# #??#[#?# #??????# #?? | | ???# ?## ???????##### #?## #?# #??????# #?? | | ???# ### # ???????# ###" #?# #??????#^ #?? | | ??## # ######## % ### ### ######## ### | | ??# % % ##?# " ! ! | | ???# #?##### [ | | | ??# # # # ####### / #?????###"####### ### | | ??## ??????# ##!=##???????###?????# #?? | | ???# ???????######!%#????????????????# #?? | | ???# #????????????#|*#????????????????" "?? | | ???# ## ##?????????????#!*#????????????????" "?? | | ???# ###???????????????#![#????????????????" "?? | | ???# #?????????????????#!!#????????????????# #?? | | ???# #?????????????????#!]#????????????????# #?? | | ???# #?????????????????# %#????????????????# #?? | | ???# ??????????????????# #????????????????# #?? | | ???# ??????????????????# #????????????????# #?? | | ???# ??????????????????# #????????????????# #?? | | ???# ??????????????????# #?????????????????##??? | | ???? ??????????????????# #?????????????????????? | | ???? ??????????????????# #?????????????????????? | | ???? ??????????????????# #?????????????????????? | | ????????????????????????# #?????????????????????? | | ????????????????????????# #?????????????????????? | | ????????????????????????#@ #?????????????????????? | | ????????????????????????#g #?????????????????????? | | ???????????????????????? %#?????????????????????? | | ???????????????????????? #?????????????????????? | | ???????????????????????## ##?????????????????????? | | ????????????????????????" #??????????????????????? | | ????????????????????????T #??????????????????????? | | ????????????????????????""#??????????????????????? | | ????????????????????????##???????????????????????? | | ?????????????????????????????????????????????????? | | ?????????????????????????????????????????????????? | | ?????????????????????????????????????????????????? | | ?????????????????????????????????????????????????? | | ?????????????????????????????????????????????????? | | ?????????????????????????????????????????????????? | | | | | | | | | | | | | | | | | | | | | +----------------------------------------------------+ Best States ------------- Heat Dissipation 67 Coolant Potential 65 Energy Generation 18 Energy Capacity 310 Matter Stores 300 Matter Capacity 300 Sight Range 16 Robot Scan Range 20 Terrain Scan Density 10 Jamming Range 12 Additional Mass Support 6 Armor Coverage 600 Weapon Cycling 15 Evasion (%) 55 Targeting Accuracy 14 Target Analysis 6 Core Analysis 6 Recoil Reduction 3 Relay Coupler Types 2 Relay Coupler Value 31 Item Schematics ----------------- Gauss Cannon | -8/Recycling | Hacked Robot Schematics ------------------ None Fabricated ------------ Nothing Repaired ---------- Remote Datajack | 12% | -6/Factory Studied --------- Arm. Wheel | -8/Materials | Hacked Remote Datajack | -6/Factory | Hacked Alien Tech Used ----------------- None Achievements -------------- None Challenges ------------ None Game ------ Seed MassLargeMantle Manual? 0 Play Time 01:32:08 Cumulative 492.7 hours Start 2026.09.14 @ 21:02:14 End 2026.09.14 @ 23:06:52 Sessions 1 Manual Loads 0 Difficulty Rogue Special Mode None Game No. 365 Rogue 365 Adventurer 0 Explorer 0 Win Type - Total 10 Types 4/0/4/2/0/0/0/0/0/0 Lore% 63 Gallery% 72 Achievement% 59 Wizard Run 0 Options --------- Layout 2 ASCII 0 Keyboard 1 Movement Vi Keybinds 0 Fullscreen 2 Font 32/Smallcaps Map View 77x44 Zoom Use 0% Tactical HUD 1 Map Filters NONE Filters NONE Steam 1 RUN: 19e39636-0abc-46ac-9519-9ee5d6bc933e